{"text_format":"1","workbook":"xlsx","n_sheets":6,"sheets":["Introduction","Birds","Mammals","Seed Treatment","species","diets"],"not_rendered":{"charts":0,"images":0,"macros":1,"external_links":1,"defined_names":11,"comments":3,"pivot_tables":0},"unopened":[],"bounds":{"document_bytes":16777216,"sheet_cells":100000,"rows_first":2000,"rows_last":500,"rows_between":2000,"halvings":0,"cell_chars":16384,"cell_head_chars":4096},"cells_cut":0,"cells_raw":0,"read":"whole","date_system":"1900"}

{"sheet":"Introduction","index":0,"n_rows":65,"n_cols":2,"rows_kept":65,"cut":false,"hidden":false,"merged":[]}
["Introduction to the Nordic Zone Birds & Mammals calculator tool"]
[]
["This calculator tool has been developed as a supplement to the document \"Pesticide risk assessment for birds and mammals\"."]
["The aim of the document is to present standard scenarios for higher tier risk assessment in the Nordic Zone."]
["The scenarios shall be used whenever the standard tier 1 scenarios (EFSA calculator tool) do not indicate safe use."]
[]
["All values for RUD, energy and moisture content, assimilation efficiency etc. used in the calculations are from Appendices F and G to the EFSA Guidance Document (EFSA Journal 2009: 7(12):1438)."]
["NB!  Please notice that the spreadsheets \"species\" and \"diets\" are used as reference data sheets in the calculations and that NO CHANGES should be made to these sheets."]
[]
["Please follow the steps below when using the calculator tool. Further guidance is provided as comments (tip texts) to selected fields in the spreadsheets."]
[]
["Risk assessment for sprayed compounds:"]
[]
["Step 0","Risk assessment for sprayed compounds is performed using the \"Birds\" and \"Mammals\" spreadsheets."]
[]
["Step 1","Please enter basic data on substance, use, toxicity etc."]
[]
["Step 2","Select a focal species that is appropriate for the crop, application scenario and growth stage in question, based upon the summary tables in chapter 6 and the relevant species accounts in chapter 5 of the document."]
[null,"When a species is selected in the spreadsheet, a species-specific body weight is shown and a corresponding Daily Energy Expenditure is calculated, based upon an allometric relationship"]
[null,"between body weight and DEE. The standard values may be replaced by case-specific data if considered appropriate and duly justified."]
[]
["Step 3","Select a diet that is appropriate for the species, crop and time period in question. Please refer to the species accounts (paragraph \"risk assessment\") in chapter 5 of the document for further guidance on this subject."]
[null,"The proportion of diet made up by each food type shall be entered into the \"PD\" column. Please remember indicating (by selection) whether the entered diet is measured as fresh weight or dry weight"]
[null,"(notice that volume % is considered equivalent to fresh weight %)."]
[]
["Step 4","Enter the length of the TWA period (default is 21 days; longer periods are not accepted). MAF x twa is calculated using a moving time window."]
[null,"Replace the default deposition factor, dehusking factor, PT, DT50 and RUD values by case-specific values, if considered appropriate. See tip texts and chapter 4 of the document for further guidance."]
[null,"If different PT values are to be used for acute and reproductive risk assessment, the table must be copied (Step 5)."]
[]
["Step 5","Copying the table allows you to make similar calculations for other diets, e.g. for other months. This is required whenever the product may be applied during an extended time period."]
[null,"Please notice that the calculations must cover the whole period and all growth stages where applications may be performed."]
[]
["Step 6","Copying the whole spreadsheet allows you to repeat the calculations for another species or another use of the product."]
[]
["Step 7","The \"Create print table\" facility opens a dialogue which allows you to summarize the results in a format suitable for printing or copying into a report."]
[null,"Please tick the columns you want to include in a summary table. The table opens in a new spreadsheet immediately before the current sheet."]
[]
["Risk assessment for seed treatments:"]
[]
["Step 0","Risk assessment for seed treatment compounds is performed using the \"Seed Treatment\" spreadsheet."]
[]
["Step 1","Please enter basic data on substance, use and toxicity."]
[]
["Step 2","Select a relevant granivorous focal species from the summary tables in chapter 6 and the species accounts in chapter 5 of the document (please notice that wood mouse is the only relevant mammal species to consider)."]
[null,"When a species is selected in the spreadsheet, a species-specific body weight is shown. Please notice that the calculation of daily intake (next step) refers to a specific body weight;"]
[null,"therefore the default body weight should NOT be changed without adjusting the daily intake accordingly."]
[]
["Step 3","Enter the daily intake of treated seed for the species in question, based upon the species-specific information (paragraphs \"risk assessment\") in chapter 5 of the document."]
[]
["Step 4","If deemed appropriate (and duly justified) the default dehusking factor and PT value (1) may be replaced by case-specific values."]
[]
["Step 5","Enter a compound-specific DT50 value (if available) for estimation of a TWA factor. The length of the TWA period (default 21 days) may be shortened if considered appropriate."]
[]
["Step 6","Copying the whole \"Seed Treatment\" spreadsheet allows you to repeat the calculations for another species or another use of the product."]
[]
["Risk assessment for seed treatments (systemic compounds) distributed to green parts of plant:"]
[]
["Step 0","Risk assessment is performed in the same way as for sprayed compounds (i.e., using the \"Birds\" and \"Mammals\" spreadsheets) with the following modifications:"]
[]
["Step 1","Application rate shall be set to zero and the number of applications to 1."]
[]
["Step 4","Depending on the intended use of the product, exposure may occur as \"cereal shoots\" or \"leafy crops\". The estimated concentration of a.s. (mg/kg) in the food type in question"]
[null,"(estimated as seed treatment rate / 5 or as measured concentrations) shall be entered directly into the corresponding \"C acute\" field (to the right of the main table)."]
[null,"\"C repro\" shall be calculated as C acute x MAFtwa."]
[null,"Deposition factor and MAF acute shall be set to 1. Default values for PT (1), DT50 (10 days) and length of TWA period (21 days) may be replaced if considered appropriate."]

{"sheet":"Birds","index":1,"n_rows":41,"n_cols":19,"rows_kept":41,"cut":false,"hidden":false,"merged":[[2,4,2,5]]}
["Birds","Standard higher tier risk assessment for birds"]
[]
[null,"Responsible","NN","Date","dd-mm-yyyy",null,"RED fields in bold shall always be filled in manually"]
[null,null,null,null,null,null,"Other RED fields are also to be filled in manually but may be left at their default values"]
[null,"Active substance","substance",null,null,null,"GREEN fields are filled in automatically but may be replaced"]
[null,"Plant protection product","product",null,null,null,"BLUE fields are filled in automatically and should NOT be replaced"]
[null,"Use","crop (group)"]
[null,"Application rate",0.1,"kg a.s./ha",null,null,"MAF acute - to be used in connection with 90th percentiles for RUD"]
[null,"No. of applications",1,null,null,"Interval","No. of applications"]
[null,"Interval between applications",1,"days",null,"(d)",1,2,3,4,5,6,7,8,"> 8"]
[null,null,null,null,null,7,1,1.4,1.6,1.8,1.9,1.9,1.9,1.9,2]
[null,"Endpoints birds:",null,null,null,10,1,1.3,1.5,1.5,1.6,1.6,1.6,1.6,1.6]
[null,"LD50 acute",340,"mg/kg bw",null,14,1,1.2,1.3,1.3,1.4,1.4,1.4,1.4,1.4]
[null,"NOAEL reproductive",75.7,"mg/kg bw/d"]
[null,null,null,null,null,null,null,null,null,null,null,null,null,null,"Please copy the table for further months or periods"]
[]
[null,"Species (please select):",null,5,"Body weight",{"$f":"OFFSET(species!$D$2,D17,0)","v":35},"g","DEE (kJ)",{"$f":"CalcDEE(D17,F17)","v":119.06661251545242}]
[]
[null,"Diet compos. measured as",null,2,null,null,null,"Length of TWA period",21,"days"]
[]
[0,"Month or period:"]
[null,"May"]
[]
[1,"Diet composition:",null,"PD","FIR ","Dehusk.","Depos.","PT","DT50","MAF","MAFtwa","RUD","RUD","DDD","DDD",null,"FE assimilated","C acute","C repro"]
[2,null,null,"ww or dw","g ww","factor","factor",null,"days","acute",null,"90 perc.","mean","acute","repro",null,"kJ/g diet mix"]
[3,"Grasses and cereal shoots",null,null,{"$f":"CalcFIR($D$19,$I$17,Q38,ROW(D26))","v":0},"--",1,1,10,1,{"$f":"calctwa($C$9, $I$19,$I26,$C$10,1)","v":0.52674977305713189},102.3,54.2,{"$f":"$E26/$F$17*R26*$H26","v":0},{"$f":"$E26/$F$17*S26*$H26","v":0},null,{"$f":"CalcFE($D$17,D$19,ROW(D26))","v":0},{"$f":"calcc($C$8,ROW(F26:M26),TRUE)","v":10.23},{"$f":"calcc($C$8,ROW(F26:M26),FALSE)","v":2.8549837699696554}]
[4,"Non-grass herbs, leafy crops",null,null,{"$f":"CalcFIR($D$19,$I$17,Q38,ROW(D27))","v":0},"--",1,{"$f":"H26","v":1},10,{"$f":"J$26","v":1},{"$f":"calctwa($C$9, $I$19,$I27,$C$10,1)","v":0.52674977305713189},70.3,28.7,0,0,null,0,{"$f":"calcc($C$8,ROW(F27:M27),TRUE)","v":7.03},1.5117718486739686]
[5,"Cereal grain/ear on plant",null,null,{"$f":"CalcFIR($D$19,$I$17,Q38,ROW(D28))","v":0},1,1,{"$f":"H26","v":1},10,{"$f":"J$26","v":1},{"$f":"calctwa($C$9, $I$19,$I28,$C$10,1)","v":0.52674977305713189},13,8,0,0,null,0,1.3,0.42139981844570551]
[6,"Large seeds/cereal grain on ground",null,0.06,{"$f":"CalcFIR($D$19,$I$17,Q38,ROW(D29))","v":0.48847639562604855},1,1,{"$f":"H26","v":1},10,{"$f":"J$26","v":1},0.52674977305713189,87,40.200000000000003,{"$f":"$E29/$F$17*R29*$H29","v":0.12142127548418923},{"$f":"$E29/$F$17*S29*$H29","v":2.9553297679141232E-2},null,0.88319999999999999,8.7000000000000011,2.1175340876896702]
[7,"Small seeds (weed seeds)",null,0.42,{"$f":"CalcFIR($D$19,$I$17,Q38,ROW(D30))","v":3.2371726507027043},1,1,{"$f":"H26","v":1},10,1,0.52674977305713189,87,40.200000000000003,0.80466863031752944,0.19585209815999149,null,7.2911999999999999,8.7000000000000011,2.1175340876896702]
[8,"Large fruit (pome)",null,null,{"$f":"CalcFIR($D$19,$I$17,Q38,ROW(D31))","v":0},"--",1,{"$f":"H26","v":1},10,1,0.52674977305713189,41.1,19.5,0,0,null,0,4.1100000000000003,1.0271620574614073]
[9,"Small fruit (plum, cherry)",null,null,{"$f":"CalcFIR($D$19,$I$17,Q38,ROW(D32))","v":0},"--",1,{"$f":"H26","v":1},10,1,0.52674977305713189,6.5,3.3,0,0,null,0,0.65,0.17382742510885352]
[10,"Berries",null,null,{"$f":"CalcFIR($D$19,$I$17,Q38,ROW(D33))","v":0},"--",1,{"$f":"H26","v":1},10,1,0.52674977305713189,16.7,8.3000000000000007,0,0,null,0,1.67,0.43720231163741952]
[11,"Foliar arthropods",null,null,{"$f":"CalcFIR($D$19,$I$17,Q38,ROW(D34))","v":0},"--",1,{"$f":"H26","v":1},10,1,0.52674977305713189,54.1,21,0,0,null,0,5.41,1.1061745234199769]
[12,"Ground-dwelling arthropods",null,0.52,{"$f":"CalcFIR($D$19,$I$17,Q38,ROW(D35))","v":11.574176818583874},"--",1,{"$f":"H26","v":1},10,1,0.52674977305713189,13.8,7.5,0.45635325741844995,0.13064346455383227,null,8.9710400000000003,1.3800000000000001,0.39506232979284894]
[13,"Ground-dwelling arthropods with intercept.",null,null,{"$f":"CalcFIR($D$19,$I$17,Q38,ROW(D36))","v":0},"--",1,{"$f":"H26","v":1},10,1,0.52674977305713189,9.6999999999999993,3.5,0,0,null,0,0.97,0.18436242056999619]
[14,"Soil invertebrates",null,null,{"$f":"CalcFIR($D$19,$I$17,Q38,ROW(D37))","v":0},"--",1,{"$f":"H26","v":1},10,{"$f":"J26","v":1},{"$f":"calctwa($C$9, $I$19,$I37,$C$10,1)","v":0.52674977305713189},0,0,0,0,null,0,0,0]
[null,"Total",null,{"$f":"SUM(D26:D37)","v":1},{"$f":"SUM(E26:E37)","v":15.299825864912627},null,null,null,null,null,null,null,null,{"$f":"SUM(N26:N37)","v":1.3824431632201686},{"$f":"SUM(O26:O37)","v":0.35604886039296502},null,{"$f":"SUM(Q26:Q37)","v":17.145440000000001}]
[null,null,null,"check = 1,00"]
[null,null,null,null,null,null,null,null,null,null,null,null,"TER",{"$f":"$C$13/ N38","v":245.94139494894478},{"$f":"$C$14/ O38","v":212.61126890408022}]
[null,null,null,null,null,null,null,null,null,null,null,null,"Trigger",10,5]

{"sheet":"Mammals","index":2,"n_rows":41,"n_cols":19,"rows_kept":41,"cut":false,"hidden":false,"merged":[[2,4,2,5]]}
["Mammals","Standard higher tier risk assessment for mammals"]
[]
[null,"Responsible","NN","Date","dd-mm-yyyy",null,"RED fields in bold shall always be filled in manually"]
[null,null,null,null,null,null,"Other RED fields are also to be filled in manually but may be left at their default values"]
[null,"Active substance","substance",null,null,null,"GREEN fields are filled in automatically but may be replaced"]
[null,"Plant protection product","product",null,null,null,"BLUE fields are filled in automatically and should NOT be replaced"]
[null,"Use","crop (group)"]
[null,"Application rate",0.1,"kg a.s./ha",null,null,"MAF acute - to be used in connection with 90th percentiles for RUD"]
[null,"No. of applications",1,null,null,"Interval","No. of applications"]
[null,"Interval between applications",1,"days",null,"(d)",1,2,3,4,5,6,7,8,"> 8"]
[null,null,null,null,null,7,1,1.4,1.6,1.8,1.9,1.9,1.9,1.9,2]
[null,"Endpoints mammals:",null,null,null,10,1,1.3,1.5,1.5,1.6,1.6,1.6,1.6,1.6]
[null,"LD50 acute",179,"mg/kg bw",null,14,1,1.2,1.3,1.3,1.4,1.4,1.4,1.4,1.4]
[null,"NOAEL reproductive",3.8,"mg/kg bw/d"]
[null,null,null,null,null,null,null,null,null,null,null,null,null,null,"Please copy the table for further months or periods"]
[]
[null,"Species (please select):",4,{"$f":"C17+16","v":20},"Body weight",{"$f":"OFFSET(species!$D$2,D17,0)","v":18},"g","DEE (kJ)",{"$f":"CalcDEE(D17,F17)","v":51.465931916811812}]
[]
[null,"Diet compos. measured as",null,1,null,null,null,"Length of TWA period",21,"days"]
[]
[0,"Month or period:"]
[null,"May"]
[]
[1,"Diet composition:",null,"PD","FIR ","Dehusk.","Depos.","PT","DT50","MAF","MAFtwa","RUD","RUD","DDD","DDD",null,"FE assimilated","C acute","C repro"]
[2,null,null,"ww or dw","g ww","factor","factor",null,"days","acute",null,"90 perc.","mean","acute","repro",null,"kJ/g diet mix"]
[3,"Grasses and cereal shoots",null,0.16,{"$f":"CalcFIR($D$19,$I$17,Q38,ROW(D26))","v":1.2475482942449254},"--",1,1,10,1,{"$f":"calctwa($C$9, $I$19,$I26,$C$10,1)","v":0.52674977305713189},102.3,54.2,{"$f":"$E26/$F$17*R26*$H26","v":0.70902328056253261},{"$f":"$E26/$F$17*S26*$H26","v":0.19787389624014387},null,{"$f":"CalcFE($D$17,D$19,ROW(D26))","v":0.31235071999999997},{"$f":"calcc($C$8,ROW(F26:M26),TRUE)","v":10.23},{"$f":"calcc($C$8,ROW(F26:M26),FALSE)","v":2.8549837699696554}]
[4,"Non-grass herbs, leafy crops",null,null,{"$f":"CalcFIR($D$19,$I$17,Q38,ROW(D27))","v":0},"--",1,{"$f":"H26","v":1},10,{"$f":"J26","v":1},{"$f":"calctwa($C$9, $I$19,$I27,$C$10,1)","v":0.52674977305713189},70.3,28.7,{"$f":"$E27/$F$17*R27*$H27","v":0},{"$f":"$E27/$F$17*S27*$H27","v":0},null,{"$f":"CalcFE($D$17,D$19,ROW(D27))","v":0},{"$f":"calcc($C$8,ROW(F27:M27),TRUE)","v":7.03},{"$f":"calcc($C$8,ROW(F27:M27),FALSE)","v":1.5117718486739686}]
[5,"Cereal grain/ear on plant",null,null,{"$f":"CalcFIR($D$19,$I$17,Q38,ROW(D28))","v":0},1,1,{"$f":"H26","v":1},10,{"$f":"J26","v":1},{"$f":"calctwa($C$9, $I$19,$I28,$C$10,1)","v":0.52674977305713189},13,8,{"$f":"$E28/$F$17*R28*$H28","v":0},{"$f":"$E28/$F$17*S28*$H28","v":0},null,0,{"$f":"calcc($C$8,ROW(F28:M28),TRUE)","v":1.3},{"$f":"calcc($C$8,ROW(F28:M28),FALSE)","v":0.42139981844570551}]
[6,"Large seeds/cereal grain on ground",null,0.3,{"$f":"CalcFIR($D$19,$I$17,Q38,ROW(D29))","v":2.3391530517092352},1,1,{"$f":"H26","v":1},10,{"$f":"J26","v":1},0.52674977305713189,87,40.200000000000003,{"$f":"$E29/$F$17*R29*$H29","v":1.1305906416594638},{"$f":"$E29/$F$17*S29*$H29","v":0.27517979573986801},null,{"$f":"CalcFE($D$17,D$19,ROW(D29))","v":3.9551903999999993},{"$f":"calcc($C$8,ROW(F29:M29),TRUE)","v":8.7000000000000011},{"$f":"calcc($C$8,ROW(F29:M29),FALSE)","v":2.1175340876896702}]
[7,"Small seeds (weed seeds)",null,0.04,{"$f":"CalcFIR($D$19,$I$17,Q38,ROW(D30))","v":0.31188707356123135},1,1,{"$f":"H26","v":1},10,{"$f":"J26","v":1},0.52674977305713189,87,40.200000000000003,{"$f":"$E30/$F$17*R30*$H30","v":0.1507454188879285},3.6690639431982391E-2,null,0.65693712000000004,{"$f":"calcc($C$8,ROW(F30:M30),TRUE)","v":8.7000000000000011},{"$f":"calcc($C$8,ROW(F30:M30),FALSE)","v":2.1175340876896702}]
[8,"Large fruit (pome)",null,null,{"$f":"CalcFIR($D$19,$I$17,Q38,ROW(D31))","v":0},"--",1,{"$f":"H26","v":1},10,{"$f":"J26","v":1},0.52674977305713189,41.1,19.5,0,0,null,0,4.1100000000000003,1.0271620574614073]
[9,"Small fruit (plum, cherry)",null,null,{"$f":"CalcFIR($D$19,$I$17,Q38,ROW(D32))","v":0},"--",1,{"$f":"H26","v":1},10,{"$f":"J26","v":1},0.52674977305713189,6.5,3.3,0,{"$f":"$E32/$F$17*S32*$H32","v":0},null,0,0.65,0.17382742510885352]
[10,"Berries",null,null,{"$f":"CalcFIR($D$19,$I$17,Q38,ROW(D33))","v":0},"--",1,{"$f":"H26","v":1},10,{"$f":"J26","v":1},0.52674977305713189,16.7,8.3000000000000007,0,0,null,0,1.67,0.43720231163741952]
[11,"Foliar arthropods",null,null,{"$f":"CalcFIR($D$19,$I$17,Q38,ROW(D34))","v":0},"--",1,{"$f":"H26","v":1},10,1,{"$f":"calctwa($C$9, $I$19,$I34,$C$10,1)","v":0.52674977305713189},54.1,21,0,0,null,0,5.41,1.1061745234199769]
[12,"Ground-dwelling arthropods",null,0.1,{"$f":"CalcFIR($D$19,$I$17,Q38,ROW(D35))","v":0.77971768390307838},"--",1,{"$f":"H26","v":1},10,1,0.52674977305713189,13.8,7.5,5.9778355765902687E-2,1.7113171376857462E-2,null,0.61616880000000018,1.3800000000000001,0.39506232979284894]
[13,"Ground-dwelling arthropods with intercept.",null,null,{"$f":"CalcFIR($D$19,$I$17,Q38,ROW(D36))","v":0},"--",1,{"$f":"H26","v":1},10,1,{"$f":"calctwa($C$9, $I$19,$I36,$C$10,1)","v":0.52674977305713189},9.6999999999999993,3.5,0,0,null,0,0.97,0.18436242056999619]
[14,"Soil invertebrates",null,0.4,{"$f":"CalcFIR($D$19,$I$17,Q38,ROW(D37))","v":3.1188707356123135},"--",1,{"$f":"H26","v":1},10,{"$f":"J26","v":1},{"$f":"calctwa($C$9, $I$19,$I37,$C$10,1)","v":0.52674977305713189},0,0,0,0,null,1.0599384000000003,{"$f":"calcc($C$8,ROW(F37:M37),TRUE)","v":0},{"$f":"calcc($C$8,ROW(F37:M37),FALSE)","v":0}]
[null,"Total",null,{"$f":"SUM(D26:D37)","v":1},{"$f":"SUM(E26:E37)","v":7.7971768390307838},null,null,null,null,null,null,null,null,{"$f":"SUM(N26:N37)","v":2.0501376968758276},{"$f":"SUM(O26:O37)","v":0.52685750278885168},null,{"$f":"SUM(Q26:Q37)","v":6.6005854399999997}]
[null,null,null,"check = 1,00"]
[null,null,null,null,null,null,null,null,null,null,null,null,"TER",{"$f":"$C$13/ N38","v":87.311208546028524},{"$f":"$C$14/ O38","v":7.2125764175041525}]
[null,null,null,null,null,null,null,null,null,null,null,null,"Trigger",10,5]

{"sheet":"Seed Treatment","index":3,"n_rows":33,"n_cols":10,"rows_kept":33,"cut":false,"hidden":false,"merged":[[2,3,2,4]]}
["Standard higher tier risk assessment for seed treatments"]
[]
["Responsible","NN","Date","dd-mm-yyyy",null,null,"RED fields in bold shall always be filled in manually"]
[null,null,null,null,null,null,"Other RED fields are also to be filled in manually but may be left at their default values"]
["Active substance","substance",null,null,null,null,"GREEN fields are filled in automatically but may be replaced"]
["Plant protection product","product",null,null,null,null,"BLUE fields are filled in automatically and should NOT be replaced"]
["Use","crop (group)"]
["Seed tmt. (mg a.s./kg seed)",10]
[]
[]
["Endpoints birds:"]
["LD50 acute",340,"mg/kg bw"]
["NOAEL reproductive",75.7,"mg/kg bw/d"]
[]
["Species (please select):",4,2,"Body weight (g)",{"$f":"OFFSET(species!$D$2,C15,0)","v":2450},null,null,"Length of TWA period",21,"days"]
[]
[null,"Daily intake","Dehusk.","PT","DT50","Ftwa","DDD","DDD","TER","TER"]
[null,"(g)","factor",null,"days",null,"acute","repro","acute","repro"]
[]
["Granivorous bird",225,1,1,9999,{"$f":"(1-EXP(-((LN(2)/E20)*$I$15)))/((LN(2)/E20)*$I$15)","v":0.99927247574780209},{"$f":"C20*D20*(B20*$B$8/$E$15)","v":0.91836734693877553},{"$f":"G20*F20","v":0.91769921242145092},{"$f":"B12/G20","v":370.22222222222223},{"$f":"B13/H20","v":82.488901565314819}]
[]
[]
[]
["Endpoints mammals:"]
["LD50 acute",179,"mg/kg bw"]
["NOAEL reproductive",3.8,"mg/kg bw/d"]
[]
["Species","Wood mouse",null,"Body weight (g)",18,null,null,"Length of TWA period",21,"days"]
[]
[null,"Daily intake","Dehusk.","PT","DT50","Ftwa","DDD","DDD","TER","TER"]
[null,"(g)","factor",null,"days",null,"acute","repro","acute","repro"]
[]
["Granivorous mammal",3.9,1,1,9999,{"$f":"(1-EXP(-((LN(2)/E33)*$I$28)))/((LN(2)/E33)*$I$28)","v":0.99927247574780209},{"$f":"C33*D33*(B33*$B$8/$E$28)","v":2.1666666666666665},{"$f":"G33*F33","v":2.1650903641202377},{"$f":"B25/G33","v":82.615384615384627},{"$f":"B26/H33","v":1.755123048429478}]

{"sheet":"species","index":4,"n_rows":26,"n_cols":6,"rows_kept":26,"cut":false,"hidden":false,"merged":[]}
["AE_gruppe","English name","Dansk navn","BW (g)","log a","b"]
[]
[3,"Bean goose","Sædgås",2845,0.83899999999999997,0.66900000000000004]
[3,"Pink-footed goose","Kortnæbbet gås",2450,0.83899999999999997,0.66900000000000004]
[5,"Grey partridge","Agerhøne",380,0.83899999999999997,0.66900000000000004]
[4,"Woodpigeon","Ringdue",435,0.83899999999999997,0.66900000000000004]
[2,"Skylark","Sanglærke",35,1.032,0.67600000000000005]
[2,"Yellow wagtail","Gul vipstjert",17.5,1.032,0.67600000000000005]
[2,"White wagtail","Hvid vipstjert",21,1.032,0.67600000000000005]
[2,"Robin","Rødhals",16.5,1.032,0.67600000000000005]
[2,"Whinchat","Bynkefugl",16.5,1.032,0.67600000000000005]
[2,"Whitethroat","Tornsanger",15.5,1.032,0.67600000000000005]
[2,"Willow warbler","Løvsanger",9.5,1.032,0.67600000000000005]
[2,"Blue tit","Blåmejse",11,1.032,0.67600000000000005]
[2,"Starling","Stær",75,1.032,0.67600000000000005]
[2,"Chaffinch","Bogfinke",21,1.032,0.67600000000000005]
[2,"Linnet","Tornirisk",18,1.032,0.67600000000000005]
[2,"Yellowhammer","Gulspurv",29,1.032,0.67600000000000005]
[1,"Common shrew","Almindelig spidsmus",8.1,0.81399999999999995,0.71499999999999997]
[1,"Brown hare","Hare",3800,0.81399999999999995,0.71499999999999997]
[1,"Field vole","Almindelig markmus",30,0.81399999999999995,0.71499999999999997]
[1,"Wood mouse","Skovmus",18,0.81399999999999995,0.71499999999999997]
[]
[]
[]
["Please do not make any changes to this sheet"]

{"sheet":"diets","index":5,"n_rows":26,"n_cols":9,"rows_kept":26,"cut":false,"hidden":false,"merged":[]}
["English name","Dansk navn","Mammal","Passerine","Duck & Geese","Pigeon","Fowl","FE","MC%"]
[null,"index",1,2,3,4,5]
["Grasses and cereal shoots","Græs og korn",0.47,0.76,0.41,0.53,0.42,17.600000000000001,76.400000000000006]
["Non-grass herbs, leafy crops","Bredbladet ukrudt og afgrøde",0.76,0.76,0.41,0.53,0.42,17.8,88.1]
["Cereal grain/ear on plant","Korn/aks på planten",0.84,0.8,0.83,0.76,0.65,18.399999999999999,14.7]
["Large seeds/cereal grain on ground","Store frø (korn) på jorden",0.84,0.8,0.83,0.76,0.65,18.399999999999999,14.7]
["Small seeds (weed seeds)","Små frø",0.84,0.8,0.83,0.76,0.65,21.7,9.9]
["Large fruit (pome)","Store frugter (æble, pære)",0.74,0.67,0.62,0.62,0.56999999999999995,14.8,83.9]
["Small fruit (plum, cherry)","Små frugter (blommer, kirsebær)",0.74,0.67,0.62,0.62,0.56999999999999995,14.8,83.9]
["Berries","Bær",0.74,0.67,0.62,0.62,0.56999999999999995,14.8,83.9]
["Foliar arthropods","Bladlevende arthropoder",0.87,0.76,0.87,0.77,0.7,22.7,68.8]
["Ground-dwelling arthropods","Jordoverflade-levende arthropoder",0.87,0.76,0.87,0.77,0.7,22.7,68.8]
["Ground-dwelling arthropods with interception","Do., interception indregnet i RUD",0.87,0.76,0.87,0.77,0.7,22.7,68.8]
["Soil invertebrates","Regnorme",0.87,0.76,0.87,0.77,0.7,19.399999999999999,84.3]
[]
[]
[]
["Fresh (wet) weight","Vådvægt"]
["Dry weight","Tørvægt"]
[]
[]
["Standard (21 days)"]
["Application interval"]
[]
[]
["Please do not make any changes to this sheet"]